bitfinex-derivatives/quotes_SOLF0:USTF0_20240827
["timestamp","ask_amount","ask_price","bid_price","bid_amount"]
[1724795640560,0.04745108,148.67,148.64,0.0481627]
[1724795640784,0.04601875,148.67,148.64,0.04523021]
[1724795641157,38.68,148.73,148.58,38.68]
[1724795641657,41.96843565,148.73,148.58,38.68]
[1724795642365,0.05088114,148.67,148.64,0.04448566]
[1724795642554,0.05088114,148.67,148.58,38.68]
[1724795642555,3.3633,148.64,148.57,3.3648]
[1724795642773,38.68,148.7,148.55,122.12762371]
[1724795643357,41.9943935,148.7,148.55,122.12762371]
[1724795643559,0.05133915,148.64,148.61,0.04327012]
[1724795643862,38.68,148.67,148.53,3.3657]
[1724795644057,38.68,148.67,148.5,38.68]
[1724795644856,0.04382177,148.6,148.57,0.04613117]
[1724795645141,38.68,148.64,148.49,3.3667]
[1724795645262,3.3654,148.55,148.48,38.68]
[1724795645460,38.68,148.61,148.48,38.68]
[1724795645864,3.3655,148.55,148.48,38.68]
[1724795646176,0.04254542,148.53,148.5,0.04900099]
[1724795646959,0.04254542,148.53,148.5,3.41540099]
[1724795647461,0.04254542,148.53,148.51,3.3662]
[1724795647669,0.04254542,148.53,148.5,38.72900099]
[1724795647868,1.6214,148.65,148.5,38.68]
[1724795648163,1.6214,148.65,148.55,38.68]
[1724795648562,1.6214,148.65,148.52,38.68]
[1724795648778,0.04515719,148.6,148.57,0.05175677]
[1724795648965,0.04515719,148.6,148.52,38.68]
[1724795649165,0.04515719,148.6,148.49,38.68]
[1724795649362,40.2558,148.64,148.49,38.68]
[1724795649565,3.365,148.57,148.5,3.3664]
[1724795650062,0.04678912,148.55,148.52,0.04825895]
[1724795652469,3.41208912,148.55,148.52,0.04825895]
[1724795652666,0.04678912,148.55,148.52,0.04825895]
[1724795652870,0.04678912,148.55,148.47,38.68]
[1724795653068,3.3656,148.54,148.48,3.3667]
[1724795653467,3.41208912,148.55,148.48,3.3667]
[1724795653866,3.41208912,148.55,148.5,0.04771507]
[1724795654364,0.04678912,148.55,148.5,0.04771507]
[1724795656167,0.04678912,148.55,148.51,3.366]
[1724795657178,0.04678912,148.55,148.5,0.04771507]
[1724795657674,0.04678912,148.55,148.5,3.41391507]
[1724795657971,0.04678912,148.55,148.5,0.04771507]
[1724795658567,0.04678912,148.55,148.52,38.68]
[1724795658777,1.5758,148.64,148.52,38.68]
[1724795658977,3.3639,148.62,148.55,42.0451]
[1724795659174,1.5758,148.64,148.55,38.68]
[1724795659374,1.5758,148.64,148.58,38.68]
[1724795659674,38.68,148.73,148.58,38.68]
[1724795659971,3.3325,148.76,148.63,3.3633]
[1724795659972,3.3619,148.71,148.63,3.3633]
[1724795660181,3.3619,148.71,148.61,38.68]
[1724795660775,3.3613,148.73,148.66,3.3628]
[1724795661004,0.04676047,148.71,148.68,0.04565379]
[1724795662270,0.04676047,148.71,148.68,3.40795379]
[1724795662668,0.04676047,148.71,148.68,0.04565379]
[1724795663879,41.9515,148.84,148.68,0.04565379]
[1724795664114,3.2715,148.84,148.72,38.68]
[1724795664397,3.3594,148.82,148.74,3.3608]
[1724795664584,3.3594,148.82,148.72,38.68]
[1724795664775,3.3594,148.82,148.72,42.06217283]
[1724795665102,0.04717156,148.78,148.76,0.04892082]
[1724795666293,0.04717156,148.78,148.76,3.40952082]
[1724795666675,0.04717156,148.78,148.76,0.04892082]
[1724795667388,0.04717156,148.78,148.76,3.40952082]
[1724795667579,0.04717156,148.78,148.76,0.04892082]
[1724795668386,0.04717156,148.78,148.59,38.68]
[1724795668682,0.04717156,148.78,148.54,38.68]
[1724795668683,38.68,148.74,148.6,1.23542242]
[1724795668936,38.68,148.71,148.54,38.68]
[1724795669098,3.3626,148.67,148.57,3.3647]
[1724795669389,0.04867842,148.63,148.61,0.04328535]
[1724795669783,38.68,148.71,148.54,38.68]
[1724795670091,0.04474652,148.63,148.61,0.05015269]
[1724795670296,3.3639,148.62,148.54,3.39427002]
[1724795670508,3.3639,148.62,148.53,4.9877]
[1724795670679,0.04464969,148.59,148.57,0.04883233]
[1724795676081,3.40904969,148.59,148.57,0.04883233]
[1724795676682,0.04464969,148.59,148.57,0.04883233]
[1724795680785,3.40904969,148.59,148.57,0.04883233]
[1724795681031,0.04464969,148.59,148.57,0.04883233]
[1724795681985,3.40904969,148.59,148.57,0.04883233]
[1724795682193,0.04464969,148.59,148.57,0.04883233]
[1724795684209,3.3646,148.58,148.57,0.04883233]
[1724795687319,0.04464969,148.59,148.48,3.30675639]
[1724795687497,1.6314,148.61,148.45,38.68]
[1724795687498,3.1917,148.61,148.45,38.68]
[1724795687901,3.3653,148.56,148.45,38.68]
[1724795688107,35.5017,148.61,148.46,32.31]
[1724795688299,0.0435898,148.55,148.52,0.04739899]
[1724795688628,0.0425335,148.55,148.52,0.04944384]
[1724795688794,32.31,148.66,148.52,32.31]
[1724795688986,1.5603,148.7,148.5,3.36609653]
[1724795688987,1.6006,148.7,148.57,32.31]
[1724795689799,0.04826451,148.65,148.62,0.04443196]
[1724795692396,0.04826451,148.65,148.62,3.40803196]
[1724795692697,0.04826451,148.65,148.62,0.04443196]
[1724795692915,0.04826451,148.65,148.63,3.3635]
[1724795693301,0.04826451,148.65,148.62,0.04443196]
[1724795694303,38.76,148.73,148.62,0.04443196]
[1724795694304,3.36,148.79,148.64,38.76]
[1724795694597,38.76,148.86,148.69,38.76]
[1724795694598,1.6366,148.84,148.69,38.76]
[1724795694799,3.3592,148.83,148.75,3.3606]
[1724795695009,1.6366,148.84,148.72,38.76]
[1724795695216,0.04318481,148.79,148.77,0.04387297]
[1724795695403,0.04425137,148.79,148.77,3.40407297]
[1724795695901,0.04425137,148.79,148.77,0.04387297]
[1724795696222,0.04425137,148.79,148.78,3.3601]
[1724795696402,0.04425137,148.79,148.77,0.04387297]
[1724795696597,0.04425137,148.79,148.77,3.40417297]
[1724795696795,0.04425137,148.79,148.77,0.04387297]
[1724795700301,0.04425137,148.79,148.78,3.3601]
[1724795700517,0.04425137,148.79,148.55,3.42161263]
[1724795700714,38.76,148.82,148.65,45.50022477]
[1724795701016,1.6366,148.84,148.63,38.76]
[1724795701017,38.76,148.79,148.63,38.76]
[1724795701203,1.6622,148.78,148.63,42.04708273]
[1724795701404,1.6622,148.78,148.65,3.363]
[1724795701704,0.05125911,148.73,148.7,0.05180397]
[1724795701900,3.3617,148.71,148.7,0.05180397]
[1724795702222,38.76,148.73,148.62,3.3635]
[1724795702701,38.76,148.73,148.58,40.4764]
[1724795703106,0.04758095,148.67,148.64,0.04352835]
[1724795703300,0.04259776,148.67,148.64,0.04636347]
[1724795704205,38.76,148.82,148.66,38.76]
[1724795704415,3.2806,148.84,148.69,38.76]
[1724795704906,3.2806,148.84,148.72,38.76]
[1724795705104,0.04615391,148.79,148.72,38.76]
[1724795705297,0.04615391,148.79,148.74,0.04559915]
[1724795706306,0.04615391,148.79,148.76,38.76]
[1724795706512,38.76,148.93,148.76,38.76]
[1724795706816,3.3581,148.87,148.78,3.3599]
[1724795706998,38.76,148.93,148.79,38.76]
[1724795707509,38.76,148.93,148.85,0.04812874]
[1724795707713,0.04831724,148.9,148.85,0.04812874]
[1724795708208,5.12141968,149.22,148.89,38.76]
[1724795708397,3.353,149.1,149.0,38.76]
[1724795708611,1.6376,149.15,149.0,38.76]
[1724795708801,1.6376,149.15,148.97,38.76]
[1724795709212,1.6376,149.15,148.97,42.05739246]
[1724795709416,0.0460585,149.07,149.05,0.04466816]
[1724795709612,3.3529,149.1,148.97,42.05739246]
[1724795709799,3.3529,149.1,149.05,0.04770776]
[1724795710036,0.04948571,149.07,148.97,42.05739246]
[1724795710211,1.6376,149.15,149.06,0.05079663]
[1724795710425,1.6376,149.15,149.01,38.76]
[1724795710426,0.04560124,149.03,149.01,38.76]
[1724795710620,1.6376,149.15,149.01,38.76]
[1724795710820,1.6376,149.15,148.97,42.05739246]
[1724795711314,38.76,149.13,148.97,38.76]
[1724795711622,38.76,149.13,148.99,3.3553]
[1724795711910,38.76,149.13,148.97,42.0531963]
[1724795711911,0.04580398,149.06,149.04,0.04237965]
[1724795712117,0.04638751,149.06,149.04,0.04589181]
[1724795717012,3.3526,149.12,149.04,0.04589181]
[1724795717223,1.6376,149.15,149.06,38.76]
[1724795717411,3.3515,149.17,149.1,3.3529]
[1724795717925,0.04602937,149.15,149.12,0.05090562]
[1724795720122,0.04602937,149.15,148.87,38.76]
[1724795720309,38.76,149.18,149.03,38.76]
[1724795721123,0.04702825,149.12,149.09,0.0501315]
[1724795721341,1.5782,149.17,149.06,38.76]
[1724795721520,0.05020633,149.12,149.09,0.04634478]
[1724795721924,3.40270633,149.12,149.09,0.04634478]
[1724795722118,0.05020633,149.12,149.09,0.04634478]
[1724795722582,3.3529,149.1,149.09,0.04634478]
[1724795722831,0.05020633,149.12,149.09,0.04634478]
[1724795723031,0.05020633,149.12,149.08,38.76]
[1724795723032,1.5782,149.27,149.11,38.76]
[1724795723324,4.7692,149.27,149.11,38.76]
[1724795723623,4.7692,149.27,149.17,38.76]
[1724795723833,1.588,149.27,149.17,38.76]
[1724795724032,3.3503,149.22,149.21,0.04642482]
[1724795725424,3.3511,149.18,149.14,38.76]
[1724795725623,3.3511,149.18,149.13,3.3521]
[1724795726020,3.3509,149.19,149.14,3.3519]
[1724795726230,40.4237,149.26,149.14,3.3519]
[1724795726527,0.05153415,149.21,149.19,0.05043281]
[1724795726721,3.3507,149.2,149.19,0.05043281]
[1724795726914,40.4237,149.26,149.11,38.76]
[1724795727731,40.4237,149.26,149.12,3.3524]
[1724795728027,0.04715911,149.2,149.18,0.05066106]
[1724795728330,38.76,149.21,149.01,38.76]
[1724795728526,38.76,149.21,149.07,38.76]
[1724795728728,38.76,149.24,149.07,42.12126469]
[1724795729035,3.3515,149.17,149.07,42.12126469]
[1724795729230,0.04670321,149.13,149.11,0.04773988]
[1724795729439,1.0,149.25,149.11,0.04442705]
[1724795729626,1.0,149.25,149.1,38.76]
[1724795729627,1.6637,149.26,149.13,38.76]
[1724795729929,1.6637,149.26,149.14,3.352]
[1724795730129,1.6637,149.26,149.1,38.76]
[1724795730426,3.3512,149.18,149.17,0.04357943]
[1724795730634,0.05079041,149.19,149.16,0.04949965]
[1724795730832,0.04976685,149.19,149.16,0.0430997]
[1724795731028,38.76,149.19,149.02,3.1474]
[1724795731227,38.76,149.14,149.02,3.1474]
[1724795731429,38.76,149.14,149.04,3.3542]
[1724795731625,38.76,149.14,149.02,3.1474]
[1724795732146,38.76,149.14,149.02,1.5917]
[1724795732147,0.05014076,149.09,149.02,1.5917]
[1724795732282,0.05014076,149.09,149.04,0.04819823]
[1724795732931,3.3538,149.07,149.04,0.04819823]
[1724795733231,0.05014076,149.09,149.04,0.04819823]
[1724795734946,1.0,149.25,149.04,38.80819823]
[1724795734947,38.76,149.2,149.04,38.80819823]
[1724795735129,1.0,149.25,149.11,3.3525]
[1724795735130,3.3511,149.19,149.11,3.3525]
[1724795735431,38.76,149.23,149.11,3.3525]
[1724795736023,3.3516,149.16,149.11,3.3525]
[1724795736227,0.04741092,149.15,149.12,0.04853538]
[1724795737729,3.39921092,149.15,149.12,0.04853538]
[1724795738130,0.04741092,149.15,149.12,0.04853538]
[1724795738945,1.6029,149.32,149.12,77.52]
[1724795739137,1.6029,149.32,149.21,38.76]
[1724795739336,3.349,149.28,149.21,42.1102]
[1724795739841,3.3497,149.25,149.23,0.04681806]
[1724795740036,0.04976669,149.25,149.23,0.04973804]
[1724795741638,38.76,149.3,149.15,38.76]
[1724795741847,38.76,149.3,149.12,38.76]
[1724795742153,38.76,149.3,149.19,3.3507]
[1724795742740,0.05019174,149.26,149.23,0.04897847]
[1724795743048,0.04996878,149.26,149.12,38.76]
[1724795743235,38.76,149.27,149.11,1.6164]
[1724795743439,38.76,149.24,149.11,1.6164]
[1724795743635,3.3504,149.21,149.11,1.6164]
[1724795744042,0.04994136,149.17,149.15,0.04703468]
[1724795744743,0.04994136,149.17,148.96,26.82]
[1724795744936,0.04994136,149.17,148.92,10.04791718]
[1724795744937,38.76,149.12,148.92,3.33411718]
[1724795745136,38.76,149.18,148.92,3.33411718]
[1724795745137,38.76,149.1,148.95,1.7017]
[1724795745345,38.76,149.1,148.92,3.33411718]
[1724795745346,38.76,149.1,148.92,38.76]
[1724795745638,38.76,149.1,148.99,3.3552]
[1724795745840,0.04613898,149.06,149.03,0.04440713]
[1724795746047,3.3543,149.04,149.03,0.04813526]
[1724795746542,38.76,149.08,148.92,38.76]
[1724795746743,38.76,149.05,148.88,5.0225]
[1724795746949,3.3561,148.96,148.91,3.357]
[1724795747273,38.76,149.02,148.87,38.76]
[1724795747462,2.6588,149.07,148.87,38.76]
[1724795747463,0.05097731,148.96,148.95,3.3562]
[1724795747641,0.04810736,148.97,148.94,0.04237261]
[1724795747841,0.04269484,148.97,148.95,38.76]
[1724795748049,38.76,149.16,149.03,3.3545]
[1724795748249,1.5575,149.17,149.04,38.76]
[1724795748547,38.76,149.19,149.13,3.3522]
[1724795748548,3.3509,149.19,149.13,3.3522]
[1724795748852,38.76,149.27,149.1,38.76]
[1724795749044,0.04699221,149.16,149.14,3.3518]
[1724795749359,0.04283665,149.16,149.14,0.04434083]
[1724795749550,0.04283665,149.16,149.15,3.3518]
[1724795750339,0.04283665,149.16,149.14,0.04434083]
[1724795750738,0.04283665,149.16,149.05,3.1872]
[1724795750739,38.76,149.18,149.01,68.9348]
[1724795750944,38.76,149.15,149.01,26.82]
[1724795751136,38.76,149.15,148.98,38.76]
[1724795751741,3.3807,149.17,148.98,38.76]
[1724795751742,0.04828536,149.08,149.05,0.04373253]
[1724795751940,0.04892766,149.08,149.05,0.04299999]
[1724795752347,3.3538,149.06,149.05,0.04299999]
[1724795753844,0.04892766,149.08,149.05,0.04299999]
[1724795753845,3.40242766,149.08,149.05,0.04299999]
[1724795754247,0.04892766,149.08,149.05,0.04299999]
[1724795754455,3.3807,149.17,149.05,38.76]
[1724795754645,3.3807,149.17,149.03,38.76]
[1724795754646,38.76,149.24,149.08,38.76]
[1724795754842,3.352,149.15,149.09,3.3529]
[1724795755256,3.352,149.15,149.08,38.76]
[1724795755440,38.76,149.24,149.08,38.76]
[1724795755441,3.352,149.14,149.08,38.76]
[1724795755647,0.04272474,149.13,149.1,0.04650265]
[1724795755846,0.04322704,149.13,149.1,0.04309913]
[1724795756041,0.04322704,149.13,149.1,3.39599913]
[1724795756246,0.04322704,149.13,149.1,38.80309913]
[1724795756953,3.2877,149.26,149.1,38.76]
[1724795757159,3.2877,149.26,149.14,38.76]
[1724795757451,1.6247,149.28,149.16,3.3515]
[1724795757852,0.04582556,149.23,149.21,0.04408011]
[1724795758057,0.04887031,149.23,149.21,0.04408011]
[1724795758245,3.3502,149.22,149.21,0.04408011]
[1724795759356,0.04887031,149.23,149.21,0.04408011]
[1724795760146,0.04887031,149.23,149.22,3.3502]
[1724795760351,40.4503,149.36,149.21,38.76]
[1724795760352,3.3491,149.28,149.21,38.76]
[1724795760551,3.3491,149.28,149.12,42.13288606]
[1724795760552,1.6903,149.36,149.24,38.76]
[1724795760853,3.3484,149.31,149.24,38.76]
[1724795761044,40.3889,149.39,149.24,38.76]
[1724795761255,40.3889,149.39,149.26,3.3493]
[1724795761448,0.04435124,149.34,149.31,0.04848519]
[1724795762252,3.348,149.32,149.31,0.04848519]
[1724795763958,3.3498,149.24,149.17,38.76]
[1724795764351,1.5531,149.34,149.17,38.76]
[1724795764755,38.76,149.32,149.17,38.76]
[1724795764947,0.04495432,149.26,149.23,0.0489273]
[1724795765156,3.3504,149.22,149.17,42.1112]
[1724795765455,0.0453479,149.21,149.18,0.04948027]
[1724795765659,0.04994177,149.21,149.18,0.05068395]
[1724795766171,3.3509,149.19,149.18,0.05068395]
[1724795767754,3.3507,149.2,149.18,0.05068395]
[1724795767952,0.04994177,149.21,149.18,0.05068395]
[1724795768557,3.3509,149.19,149.18,0.05068395]
[1724795769361,1.6275,149.22,149.06,38.76]
[1724795770559,3.352,149.14,149.13,0.04275621]
[1724795770756,0.0487679,149.15,149.12,0.04355297]
[1724795770963,0.05096154,149.15,149.12,0.04775031]
[1724795771759,3.3522,149.13,149.12,0.04775031]
[1724795773059,0.05096154,149.15,149.12,0.04775031]
[1724795775270,3.34573989,149.3,149.13,38.76]
[1724795775455,6.16747182,149.29,149.16,38.76]
[1724795775859,6.16747182,149.28,149.19,38.76]
[1724795776061,41.9753,149.36,149.22,38.76]
[1724795776364,0.05043977,149.3,149.28,0.05062143]
[1724795776566,9.51798164,149.29,149.28,0.04250565]
[1724795776861,6.16938164,149.29,149.28,0.04250565]
[1724795778162,12.87614079,149.29,149.28,0.04250565]
[1724795778374,16.22474079,149.29,149.28,0.04250565]
[1724795779566,3.3486,149.29,149.28,0.04250565]
[1724795780069,10.05560329,149.29,149.28,0.04250565]
[1724795780360,16.22574338,149.29,149.28,0.04250565]
[1724795780564,12.87714338,149.29,149.16,38.76]
[1724795780761,51.63714338,149.28,149.14,38.76]
[1724795780962,38.76,149.25,149.12,26.82]
[1724795781158,12.87714338,149.24,149.12,26.82]
[1724795781469,12.87714338,149.24,149.09,3.3433]
[1724795781470,38.76,149.22,149.09,3.3433]
[1724795781662,0.0454962,149.19,149.04,1.5705]
[1724795781972,0.0440973,149.13,149.1,0.0441078]
[1724795782161,0.0506756,149.13,149.1,0.05001854]
[1724795782762,3.4028756,149.13,149.1,0.05001854]
[1724795783263,0.0506756,149.13,149.1,0.05001854]
[1724795784972,3.3526,149.12,149.1,0.05001854]
[1724795785165,38.76,149.12,148.97,38.76]
[1724795785381,40.3189,149.21,148.97,38.76]
[1724795785564,38.76,149.11,148.98,3.3554]
[1724795786371,38.76,149.11,149.03,0.04918505]
[1724795786372,0.0507975,149.06,149.03,0.04918505]
[1724795787264,3.3541,149.05,149.03,0.04918505]
[1724795789072,0.0507975,149.06,149.03,0.04918505]
[1724795791674,38.76,149.18,149.03,38.80918505]
[1724795791984,12.87655077,149.17,149.06,38.76]
[1724795792282,6.70988772,149.16,149.06,38.76]
[1724795792469,6.70988772,149.15,149.06,38.76]
[1724795792774,0.04507476,149.12,149.09,0.05007584]
[1724795792969,12.87789382,149.22,149.09,1.6669]
[1724795793175,3.3516,149.16,149.09,1.6669]
[1724795793374,38.76,149.23,149.09,1.6669]
[1724795793375,6.70922021,149.15,149.09,1.6669]
[1724795793572,38.76,149.23,149.09,1.6669]
[1724795794007,0.04234646,149.17,149.15,0.04616216]
[1724795794167,3.3516,149.16,149.15,0.04616216]
[1724795794367,10.06080822,149.16,149.15,0.04616216]
[1724795797273,0.04395625,149.17,149.15,0.04616216]
[1724795797471,6.70909762,149.16,149.15,0.04616216]
[1724795797878,0.04395625,149.17,149.15,0.04616216]
[1724795798570,3.3516,149.16,149.15,0.04616216]
[1724795798967,6.70857471,149.16,149.15,0.04616216]
[1724795799173,6.70855314,149.16,149.14,38.76]
[1724795799370,38.76,149.33,149.14,38.76]
[1724795799583,6.17226904,149.32,149.19,38.76]
[1724795799970,3.3497,149.25,149.21,3.3503]
[1724795800202,6.22060651,149.24,149.22,0.04385982]
[1724795800370,0.04590061,149.24,149.22,0.04690041]
[1724795800975,38.76,149.33,149.19,38.76]
[1724795801196,6.17326107,149.32,149.19,38.76]
[1724795801375,6.17326107,149.31,149.19,38.76]
[1724795801671,6.17326107,149.31,149.19,42.14001444]
[1724795801871,4.7798,149.35,149.19,38.76]
[1724795801872,3.3492,149.27,149.19,38.76]
[1724795802080,6.22239039,149.26,149.24,0.0513917]
[1724795802285,9.52276107,149.25,149.24,0.050775]
[1724795802473,6.17326107,149.25,149.14,38.76]
[1724795802779,3.3512,149.18,149.13,3.352]
[1724795802974,3.3512,149.18,149.11,38.76]
[1724795803479,0.04453429,149.16,149.13,0.04274914]
[1724795803875,3.3512,149.18,149.13,3.39484914]
[1724795804375,3.3514,149.17,149.13,3.39484914]
[1724795804680,3.3514,149.17,149.11,38.76]
[1724795804681,3.3514,149.17,149.12,3.3524]
[1724795804877,38.76,149.27,149.13,0.04879598]
[1724795804878,0.05040021,149.16,149.13,0.04879598]
[1724795805086,0.04416255,149.16,149.13,0.04785322]
[1724795805380,3.3518,149.15,149.13,0.04785322]
[1724795805586,0.04416255,149.16,149.13,0.04785322]
[1724795805979,6.1706776,149.2,149.13,0.04785322]
[1724795806180,3.3505,149.21,149.13,0.04785322]
[1724795806378,3.3502,149.22,149.17,3.3512]
[1724795806577,6.17171379,149.21,149.17,3.3512]
[1724795806778,38.76,149.29,149.17,3.3512]
[1724795806993,3.35,149.23,149.22,0.04930086]
[1724795807180,1.4429,149.23,149.22,0.04930086]
[1724795807380,0.04892086,149.24,149.22,0.04930086]
[1724795807882,6.17337499,149.23,149.22,3.39950086]
[1724795808091,4.17967499,149.23,149.22,3.39950086]
[1724795808275,0.04892086,149.24,149.22,0.04930086]
[1724795808485,0.04892086,149.24,149.23,3.35]
[1724795809783,0.04892086,149.24,149.22,0.04930086]
[1724795810887,3.35,149.23,149.22,0.04930086]
[1724795811485,3.3505,149.21,149.11,38.76]
[1724795811788,38.76,149.23,149.08,65.58]
[1724795812089,38.76,149.27,149.12,38.76]
[1724795812286,1.562,149.26,149.12,38.76]
[1724795812475,3.3509,149.19,149.18,0.04717026]
[1724795813886,38.76,149.22,149.08,26.82]
[1724795814193,1.6155,149.19,149.1,3.3527]
[1724795814389,1.6155,149.19,149.06,38.76]
[1724795814895,0.05021924,149.14,149.11,0.0443058]
[1724795815287,0.05021924,149.14,149.12,3.3523]
[1724795815895,0.05021924,149.14,149.12,3.3525]
[1724795816091,0.05021924,149.14,149.11,0.0443058]
[1724795816295,0.05021924,149.14,149.12,38.76]
[1724795816490,1.562,149.26,149.12,38.76]
[1724795816491,3.3503,149.22,149.12,38.76]
[1724795816884,1.6225,149.25,149.15,38.76]
[1724795817100,3.3502,149.23,149.18,3.3511]
[1724795817407,3.3502,149.23,149.15,38.76]
[1724795817597,0.04533075,149.2,149.18,0.0454605]
[1724795818497,0.00823075,149.2,149.19,3.3508]
[1724795822392,0.00823075,149.2,149.18,38.8054605]
[1724795822393,0.00823075,149.2,149.18,0.0454605]
[1724795823099,0.00823075,149.2,149.19,3.3509]
[1724795827199,0.00823075,149.2,149.18,0.0454605]
[1724795827693,0.00823075,149.2,149.09,38.76]
[1724795827897,3.2219,149.23,149.09,38.76]
[1724795828330,3.2219,149.23,148.98,26.8]
[1724795828497,38.76,149.16,149.01,1.23205575]
[1724795828709,3.3538,149.06,148.98,3.40837863]
[1724795828897,3.3538,149.06,149.01,0.04624132]
[1724795828898,0.04752881,149.03,149.01,0.04624132]
[1724795831201,0.04752881,149.03,149.01,42.16114132]
[1724795831499,3.2219,149.12,149.01,42.16114132]
[1724795831699,3.2219,149.12,149.06,3.3538]
[1724795831903,38.76,149.19,149.01,38.76]
[1724795832093,3.1823,149.18,149.04,38.76]
[1724795832721,0.0484725,149.12,149.1,0.0496343]
[1724795832916,0.05078473,149.12,149.1,0.04844985]
[1724795833902,0.05078473,149.12,149.11,3.3527]
[1724795834606,4.7249,149.25,149.09,38.76]
[1724795834807,4.7249,149.25,149.08,3.27924554]
[1724795834808,4.7249,149.25,149.13,38.76]
[1724795835307,8.0744,149.25,149.15,3.3516]
[1724795835495,0.04955976,149.21,149.19,0.0499739]
[1724795838207,3.40005976,149.21,149.19,0.0499739]
[1724795838708,0.04955976,149.21,149.1,38.76]
[1724795839041,38.76,149.22,149.07,38.76]
[1724795839218,38.76,149.22,148.91,6.7144]
[1724795839219,38.76,149.2,149.05,38.76]
[1724795839713,0.0441445,149.14,149.11,0.04443072]
[1724795839907,0.0441445,149.14,149.11,0.05109377]
[1724795839908,0.04400821,149.14,149.11,0.05109377]
[1724795840441,3.39600821,149.14,149.11,0.05109377]
[1724795840905,0.04400821,149.14,149.11,0.05109377]
[1724795842624,0.04400821,149.14,149.11,3.40379377]
[1724795844206,0.04400821,149.14,149.11,0.05109377]
[1724795844461,1.5463,149.22,149.12,3.30562354]
[1724795844716,3.3502,149.22,149.1,38.76]
[1724795844911,1.61,149.24,149.13,38.76]
[1724795845310,0.04353961,149.2,149.17,0.04406676]
[1724795845507,0.04584557,149.2,149.17,0.04418934]
[1724795847010,3.39664557,149.2,149.17,0.04418934]
[1724795847415,0.04584557,149.2,149.17,0.04418934]
[1724795848947,3.3511,149.18,149.17,0.04418934]
[1724795849808,0.04584557,149.2,149.17,0.04418934]
[1724795850412,0.04584557,149.2,149.17,3.39548934]
[1724795851014,0.04584557,149.2,149.17,0.04418934]
[1724795851612,3.3511,149.19,149.17,0.04418934]
[1724795851810,0.04584557,149.2,149.17,0.04418934]
[1724795852215,3.3511,149.18,149.17,0.04418934]
[1724795852613,3.3511,149.18,149.08,38.76]
[1724795852614,38.76,149.23,149.1,3.3529]
[1724795852918,38.76,149.2,149.05,65.58]
[1724795853214,3.3516,149.16,149.05,65.58]
[1724795853412,38.76,149.2,149.05,65.58]
[1724795853613,0.04940528,149.14,149.11,0.0426662]
[1724795853813,0.04532798,149.14,149.11,0.04516701]
[1724795854919,0.04532798,149.14,149.13,3.3522]
[1724795855221,0.04532798,149.14,149.11,0.04516701]
[1724795855430,0.04532798,149.14,149.13,3.3522]
[1724795855815,0.04532798,149.14,149.11,0.04516701]
[1724795858124,0.04532798,149.14,149.11,3.39776701]
[1724795858920,0.04532798,149.14,149.12,3.3524]
[1724795859530,0.04532798,149.14,149.13,3.3522]
[1724795861828,0.04532798,149.14,149.11,0.04516701]
[1724795862645,1.61,149.24,149.13,42.1122]
[1724795862842,1.61,149.24,149.13,38.76]
[1724795863215,1.61,149.24,149.2,3.3506]
[1724795863823,0.04595548,149.23,149.21,0.04326151]
[1724795865918,0.04595548,149.23,149.21,3.39366151]
[1724795866515,0.04595548,149.23,149.21,0.04326151]
[1724795866913,0.04595548,149.23,149.22,3.3502]
[1724795869125,0.04595548,149.23,149.21,3.39366151]
[1724795869952,0.04595548,149.23,149.22,3.3502]
[1724795872028,0.04595548,149.23,149.22,35.5002]
[1724795872732,0.04595548,149.23,149.22,3.3502]
[1724795872936,0.04595548,149.23,149.21,3.39366151]
[1724795873336,0.04595548,149.23,149.21,0.04326151]
[1724795873946,3.3241,149.29,149.22,32.15]
[1724795874240,3.3494,149.26,149.22,32.15]
[1724795874435,3.3241,149.29,149.22,32.15]